fUSD/lending_fUSD_20240625
["ID","MTS","AMOUNT","RATE_DAILY","PERIOD"]
[330395868,1719346121104,-150.0,0.00044528,30]
[330395869,1719346121131,-150.0,0.00044712,30]
[330395870,1719346121158,-150.0,0.00044896,30]
[330395871,1719346121185,-637.90731973,0.00044906,30]
[330395872,1719346121215,-892.5292248,0.00045011,30]
[330395873,1719346121243,-150.0,0.0004508,30]
[330395874,1719346121271,-1608.2562724,0.0004511,30]
[330395875,1719346121300,-256.2315395,0.00045207,30]
[330395876,1719346121327,-150.0,0.00045264,30]
[330395877,1719346121355,-150.0,0.00045448,30]
[330395878,1719346121386,-150.97008216,0.00045483,30]
[330395879,1719346121415,-637.90731973,0.0004558,30]
[330395880,1719346121444,-150.97008216,0.00045631,30]
[330395881,1719346121472,-150.0,0.00045632,30]
[330395882,1719346121499,-892.5292248,0.00045647,30]
[330395883,1719346121528,-150.0,0.00045671,30]
[330395884,1719346121556,-150.0,0.00045816,30]
[330395885,1719346121585,-150.0,0.00045836,30]
[330395886,1719346121613,-150.97008216,0.00045892,30]
[330395887,1719346121641,-188.91198314,0.00046,30]
[330395888,1719346121668,-288.95912082,0.00046,30]
[330395889,1719346121697,-212.80519448,0.0004618,30]
[330395890,1719346121724,-637.90731977,0.0004624,30]
[330395891,1719346121752,-892.529225,0.00046344,30]
[330395892,1719346121785,-150.97008216,0.00046488,30]
[330395893,1719346121813,-212.80519459,0.00046504,30]
[330395894,1719346121842,-150.97008223,0.00046559,30]
[330395895,1719346121871,-1608.2562724,0.0004662,30]
[330395896,1719346121899,-1608.25627242,0.00046697,30]
[330395897,1719346121924,-256.23153954,0.00046746,30]
[330395898,1719346121952,-345370.27098966,0.000468,60]
[330395899,1719346121979,-6081.4387386,0.000468,60]
[330395900,1719346122005,-6420.8324541,0.000468,60]
[330395901,1719346122035,-499999.0,0.000468,60]
[330395902,1719346122061,-21240.07540717,0.000468,60]
[330395903,1719346122087,-153.931342,0.000468,59]
[330395904,1719346122115,-150.0,0.00046803,120]
[330395905,1719346122140,-572.12138686,0.00046827,30]
[330395906,1719346122167,-151.92007366,0.00046847,30]
[330395907,1719346122194,-3401.0,0.00046849,120]
[330395908,1719346122221,-5338.04,0.00046849,120]
[330395909,1719346122249,-150.0,0.00046897,120]
[330395910,1719346122276,-250.0,0.00046931,100]
[330395911,1719346122301,-335.07279324,0.00046931,100]
[330395912,1719346122329,-1000.0,0.00046999,120]
[330395913,1719346122358,-50000.0,0.00047,37]
[330395914,1719346122385,-2401.56298111,0.00047,120]
[330395915,1719346122412,-1000.0,0.00047,120]
[330395916,1719346122438,-1000.0,0.00047,120]
[330395917,1719346122464,-1000.0,0.00047,120]
[330395918,1719346122489,-1000.0,0.00047,120]
[330395919,1719346122514,-1000.0,0.00047,120]
[330395920,1719346122542,-704.73,0.00047,120]
[330395921,1719346122572,-10213.51294781,0.00047,120]
[330395922,1719346122597,-154.22479112,0.00047,60]
[330395923,1719346122622,-400000.0,0.00047,70]
[330395924,1719346122647,-189.06451625,0.00047,120]
[330395925,1719346122673,-500.0,0.00047,30]
[330395926,1719346122700,-1000000.0,0.00047,70]
[330395927,1719346122725,-630.73,0.00047,30]
[330395928,1719346122854,-500.0,0.00047,30]
[330395929,1719346122884,-150.0,0.00047019,120]
[330395930,1719346122910,-175.13346,0.00047088,30]
[330395931,1719346122938,-3401.0,0.00047123,120]
[330395932,1719346122964,-5338.04,0.00047123,120]
[330395933,1719346122992,-172.18888889,0.00047123,120]
[330395934,1719346123020,-5937.59,0.00047202,117]
[330395935,1719346123047,-175.13346,0.00047288,30]
[330395936,1719346123073,-3401.0,0.00047397,120]
[330395937,1719346123098,-5338.04,0.00047397,120]
[330395938,1719346123123,-268.41568038,0.0004748,120]
[330395939,1719346123149,-175.13346,0.00047488,30]
[330395940,1719346123176,-500000.0,0.000475,90]
[330395941,1719346123201,-500000.0,0.000475,90]
[330395942,1719346123229,-1000000.0,0.000475,72]
[330395943,1719346123254,-153.91521671,0.000475,30]
[330395944,1719346123279,-499999.99999901,0.000475,40]
[330395945,1719346123306,-150.0,0.00047658,120]
[330395946,1719346123331,-3401.0,0.00047671,120]
[330395947,1719346123357,-5338.04,0.00047671,120]
[330395948,1719346123383,-175.13346,0.00047688,30]
[330395949,1719346123410,-150.0,0.00047688,120]
[330395950,1719346123437,-82370.2509445,0.000478,67]
[330395951,1719346123628,657.84738546,0.00014999,2]
[330395952,1719346129408,-5737.09,0.00027397,10]
[330395953,1719346129494,-700.0,0.0004,30]
[330395954,1719346129526,-2000.0,0.00043781,30]
[330395955,1719346129555,-150.0,0.00045892,30]
[330395956,1719346129580,-208.50687214,0.00046,30]
[330395957,1719346129606,-1356.91568856,0.00047688,30]
[330395958,1719346129632,-917629.7490555,0.000478,67]
[330395959,1719346129658,-172.18888889,0.00047836,120]
[330395960,1719346129685,-151.0,0.00047863,120]
[330395961,1719346129712,-150.0,0.00047875,120]
[330395962,1719346129739,-875636.75596621,0.0004788,30]
[330395963,1719346129765,-2656.2280115,0.00047898,90]
[330395964,1719346129793,-1375.51,0.00047945,120]
[330395965,1719346129820,-1000.0,0.00047945,60]
[330395966,1719346129846,-3401.0,0.00047945,120]
[330395967,1719346129873,-5338.04,0.00047945,120]
[330395968,1719346129900,-2449.11735713,0.0004798,120]
[330395969,1719346129927,-1000.0,0.00047999,120]
[330395970,1719346129955,-50000.0,0.00048,38]
[330395971,1719346129983,-685.6781699,0.00048,120]
[330395972,1719346130010,-1000.0,0.00048,120]
[330395973,1719346130035,-500.0,0.00048,30]
[330395974,1719346130061,-620.0,0.00048,120]
[330395975,1719346130086,-650.0,0.00048,120]
[330395976,1719346130112,-3000.0,0.00048,120]
[330395977,1719346130137,-500.0,0.00048,30]
[330395978,1719346130163,-677.44515393,0.00048,20]
[330395979,1719346130193,-1000000.0,0.00048,75]
[330395980,1719346130218,-1821.48142242,0.00048,120]
[330395981,1719346130245,-1000000.0,0.00048,60]
[330395982,1719346130271,-1000000.0,0.00048,60]
[330395983,1719346130297,-119433.29341382,0.00048,60]
[330395984,1719346134013,-5928.32,0.00027397,10]
[330395985,1719346134109,-2724.99258196,0.00046,117]
[330395986,1719346134136,-880566.70658618,0.00048,60]
[330395987,1719346134163,-1000000.0,0.00048,60]
[330395988,1719346134191,-1000000.0,0.00048,60]
[330395989,1719346134218,-400000.0,0.00048,60]
[330395990,1719346134245,-400000.0,0.00048,60]
[330395991,1719346134272,-400000.0,0.00048,60]
[330395992,1719346134299,-200000.0,0.00048,60]
[330395993,1719346134324,-200.0,0.00048,25]
[330395994,1719346134353,-150.0,0.00048023,120]
[330395995,1719346134380,-1375.51,0.00048082,120]
[330395996,1719346134407,-175.13346,0.00048088,30]
[330395997,1719346134437,-150.0,0.00048101,120]
[330395998,1719346134465,-1375.51,0.00048219,120]
[330395999,1719346134492,-3401.0,0.00048219,120]
[330396000,1719346134603,-5338.04,0.00048219,120]
[330396001,1719346134630,-175.13346,0.00048288,30]
[330396002,1719346134664,-1039.0,0.000483,30]
[330396003,1719346134691,-1039.0,0.000483,30]
[330396004,1719346134717,-1132.0,0.00048347,28]
[330396005,1719346134744,-1375.51,0.00048356,120]
[330396006,1719346134772,-152.0,0.00048384,60]
[330396007,1719346134800,-150.0,0.00048387,120]
[330396008,1719346134829,-150.0,0.00048395,120]
[330396009,1719346134855,-175.13346,0.00048488,30]
[330396010,1719346134882,-250.0,0.00048493,100]
[330396011,1719346134915,-1375.51,0.00048493,120]
[330396012,1719346134944,-3401.0,0.00048493,120]
[330396013,1719346134974,-5338.04,0.00048493,120]
[330396014,1719346135004,-1000.0,0.000485,120]
[330396015,1719346135031,-1014.31,0.000485,120]
[330396016,1719346135058,-1003.98,0.000485,120]
[330396017,1719346135087,-679844.17045186,0.000485,80]
[330396018,1719346139016,-150.0,0.00048,30]
[330396019,1719346139049,-320155.82954814,0.000485,80]
[330396020,1719346139075,-597.531,0.00048528,120]
[330396021,1719346139101,-597.531,0.00048528,120]
[330396022,1719346139128,-597.532,0.00048528,120]
[330396023,1719346139154,-274.11214683,0.00048528,120]
[330396024,1719346139179,-597.531,0.00048528,120]
[330396025,1719346139205,-597.532,0.00048528,120]
[330396026,1719346139230,-287.65613003,0.00048528,120]
[330396027,1719346139256,-150.0,0.00048535,120]
[330396028,1719346139284,-172.18888889,0.00048548,120]
[330396029,1719346139313,-1375.51,0.0004863,120]
[330396030,1719346139340,-150.0,0.00048646,120]
[330396031,1719346139367,-175.13346,0.00048688,30]
[330396032,1719346139393,-150.0,0.000487,120]
[330396033,1719346139418,-312.57799877,0.000487,120]
[330396034,1719346139446,-108193.36758413,0.0004872,120]
[330396035,1719346139471,-1375.51,0.00048767,120]
[330396036,1719346139496,-3401.0,0.00048767,120]
[330396037,1719346139522,-5338.04,0.00048767,120]
[330396038,1719346139547,-1103.68386169,0.000488,120]
[330396039,1719346139572,-368.61016682,0.000488,120]
[330396040,1719346139598,-156.8184,0.00048888,30]
[330396041,1719346139623,-1000000.0,0.000489,77]
[330396042,1719346139649,-187.42517971,0.000489,120]
[330396043,1719346139676,-15092.43042486,0.000489,120]
[330396044,1719346139701,-1375.51,0.00048904,120]
[330396045,1719346139726,-225.442896,0.00048957,30]
[330396046,1719346139750,-150.286247,0.00048957,30]
[330396047,1719346139776,-474773.73776,0.00048975,120]
[330396048,1719346139804,-151.0,0.00048986,120]
[330396049,1719346139833,-50000.0,0.00049,39]
[330396050,1719346139858,-1921801.43944447,0.00049,120]
[330396051,1719346140079,-454.17540135,0.00049,10]
[330396052,1719346140108,-50000.0,0.00049,120]
[330396053,1719346140137,-734.33180319,0.00049,30]
[330396054,1719346140164,-608.19116019,0.00049,120]
[330396055,1719346140191,-500.0,0.00049,30]
[330396056,1719346140219,-165.74340163,0.00049,120]
[330396057,1719346140246,-500.0,0.00049,30]
[330396058,1719346140272,-1183.0,0.00049,120]
[330396059,1719346140305,-5500.0,0.00049,120]
[330396060,1719346140332,-500.0,0.00049,120]
[330396061,1719346140359,-500.0,0.00049,120]
[330396062,1719346140385,-739.0,0.00049,120]
[330396063,1719346140415,-691.0,0.00049,120]
[330396064,1719346140440,-392.70638106,0.00049,120]
[330396065,1719346140466,-1000.0,0.00049,30]
[330396066,1719346140493,-1000000.0,0.00049,85]
[330396067,1719346140520,-500.0,0.00049,120]
[330396068,1719346140550,-500.0,0.00049,120]
[330396069,1719346140575,-500.0,0.00049,120]
[330396070,1719346140605,-500.0,0.00049,120]
[330396071,1719346140631,-500.0,0.00049,120]
[330396072,1719346140656,-500.0,0.00049,120]
[330396073,1719346140682,-500.0,0.00049,120]
[330396074,1719346140708,-500.0,0.00049,120]
[330396075,1719346140733,-500.0,0.00049,120]
[330396076,1719346140758,-500.0,0.00049,120]
[330396077,1719346140783,-500.0,0.00049,120]
[330396078,1719346140812,-986.0,0.00049,120]
[330396079,1719346140838,-1375.51,0.00049041,120]
[330396080,1719346140864,-3401.0,0.00049041,120]
[330396081,1719346140893,-5338.04,0.00049041,120]
[330396082,1719346140920,-150.0,0.00049101,120]
[330396083,1719346140946,-1375.51,0.00049178,120]
[330396084,1719346140974,-172.18888889,0.0004926,120]
[330396085,1719346141002,-300.0,0.00049315,30]
[330396086,1719346141028,-300.0,0.00049315,30]
[330396087,1719346141053,-300.0,0.00049315,30]
[330396088,1719346141079,-300.0,0.00049315,30]
[330396089,1719346141104,-300.0,0.00049315,30]
[330396090,1719346141130,-300.0,0.00049315,30]
[330396091,1719346141156,-300.0,0.00049315,30]
[330396092,1719346141181,-300.0,0.00049315,30]
[330396093,1719346141206,-310.0,0.00049315,30]
[330396094,1719346141231,-250.0,0.00049315,30]
[330396095,1719346141256,-250.0,0.00049315,30]
[330396096,1719346141281,-1375.51,0.00049315,120]
[330396097,1719346141308,-1000.0,0.00049315,65]
[330396098,1719346141337,-500.0,0.00049315,30]
[330396099,1719346141365,-2113.12582635,0.00049315,120]
[330396100,1719346145799,-384.32401707,0.000468,15]
[330396101,1719346145834,-1287.87417365,0.00049315,120]
[330396102,1719346145864,-5338.04,0.00049315,120]
[330396103,1719346145895,-200.0,0.00049315,60]
[330396104,1719346145925,-500.0,0.00049315,16]
[330396105,1719346145954,-1132.0,0.00049375,28]
[330396106,1719346145983,-307.15276399,0.000494,120]
[330396107,1719346146011,-1375.51,0.00049452,120]
[330396108,1719346146038,-1000000.0,0.000495,87]
[330396109,1719346146066,-1375.51,0.00049589,120]
[330396110,1719346146092,-3401.0,0.00049589,120]
[330396111,1719346146119,-5338.04,0.00049589,120]
[330396112,1719346146148,-2000000.0,0.0004969,120]
[330396113,1719346146174,-225.442896,0.00049699,30]
[330396114,1719346146203,-150.286247,0.00049699,30]
[330396115,1719346146229,-1375.51,0.00049726,120]
[330396116,1719346146255,-1375.51,0.00049863,120]
[330396117,1719346146280,-3401.0,0.00049863,120]
[330396118,1719346146308,-5338.04,0.00049863,120]
[330396119,1719346146333,-108313.38139319,0.0004988,30]
[330396120,1719346146360,-408.0,0.00049886,120]
[330396121,1719346146388,-213.32183,0.000499,30]
[330396122,1719346146416,-200.0,0.000499,120]
[330396123,1719346146443,-170.26113032,0.000499,120]
[330396124,1719346146469,-25000.0,0.000499,120]
[330396125,1719346146499,-172.18888889,0.00049973,120]
[330396126,1719346146528,-408.0,0.00049986,120]
[330396127,1719346146555,-5174.29079618,0.00049999,15]
[330396128,1719346146582,-1000.0,0.00049999,120]
[330396129,1719346146614,-50000.0,0.0005,50]
[330396130,1719346146641,-574.0,0.0005,120]
[330396131,1719346146668,-180851.93275739,0.0005,14]
[330396132,1719346146694,-150.0,0.0005,120]
[330396133,1719346146720,-4074.33999712,0.0005,120]
[330396134,1719346146746,-330.06879204,0.0005,120]
[330396135,1719346146780,-963.10435011,0.0005,120]
[330396136,1719346146815,-329.53485508,0.0005,30]
[330396137,1719346146844,-803.88448684,0.0005,120]
[330396138,1719346146874,-231.7347642,0.0005,120]
[330396139,1719346146902,-500.32763716,0.0005,120]
[330396140,1719346146931,-200000.0,0.0005,120]
[330396141,1719346146959,-1000.0,0.0005,120]
[330396142,1719346146989,-500.0,0.0005,120]
[330396143,1719346147018,-11386.62714364,0.0005,30]
[330396144,1719346147046,-500.0,0.0005,30]
[330396145,1719346147074,-655.81719547,0.0005,30]
[330396146,1719346147103,-150.0,0.0005,30]
[330396147,1719346147129,-500.0,0.0005,30]
[330396148,1719346147157,-200.0,0.0005,120]
[330396149,1719346147185,-3307.21176043,0.0005,30]
[330396150,1719346147214,-550.0,0.0005,120]
[330396151,1719346147424,-1000.0,0.0005,100]
[330396152,1719346147452,-413.0,0.0005,120]
[330396153,1719346147479,-954.64217311,0.0005,120]
[330396154,1719346147504,-2000.0,0.0005,30]
[330396155,1719346147530,-225.1821224,0.0005,120]
[330396156,1719346147559,-337.1451091,0.0005,30]
[330396157,1719346147585,-300.0,0.0005,30]
[330396158,1719346147611,-368.03074006,0.0005,120]
[330396159,1719346147637,-150.0,0.0005,30]
[330396160,1719346147663,-191.0,0.0005,120]
[330396161,1719346147689,-1303.84,0.0005,100]
[330396162,1719346147716,-10002.83374721,0.0005,120]
[330396163,1719346147743,-1061.217285,0.0005,120]
[330396164,1719346147771,-1845.58,0.0005,120]
[330396165,1719346147799,-1000000.0,0.0005,80]
[330396166,1719346147826,-1436.44064239,0.0005,120]
[330396167,1719346147854,-202.0,0.0005,90]
[330396168,1719346147881,-2000.0,0.0005,120]
[330396169,1719346147910,-7327.85109618,0.0005,30]
[330396170,1719346147937,-200.0,0.0005,120]
[330396171,1719346147971,-337557.96920878,0.0005,90]
[330396172,1719346153422,-150.0,0.00049726,30]
[330396173,1719346153452,-662442.03079122,0.0005,90]
[330396174,1719346153482,-200.0,0.0005,120]
[330396175,1719346153512,-476.50953071,0.0005,120]
[330396176,1719346153543,-1217.76792902,0.0005,120]
[330396177,1719346153575,-200.0,0.0005,120]
[330396178,1719346153605,-500.0,0.0005,120]
[330396179,1719346153635,-172.84110229,0.0005,120]
[330396180,1719346153664,-1733.3071491,0.0005,120]
[330396181,1719346153694,-200.0,0.0005,120]
[330396182,1719346153723,-200.0,0.0005,120]
[330396183,1719346153751,-200.0,0.0005,120]
[330396184,1719346153779,-1375.51,0.0005,120]
[330396185,1719346153809,-200.0,0.0005,27]
[330396186,1719346153838,-200.0,0.0005,120]
[330396187,1719346153870,-202.31519658,0.0005002,120]
[330396188,1719346153902,-250.0,0.00050054,100]
[330396189,1719346153932,-30000.0,0.000501,120]
[330396190,1719346153963,-151.0,0.0005011,120]
[330396191,1719346153994,-1375.51,0.00050136,120]
[330396192,1719346154023,-3401.10851572,0.00050136,120]
[330396193,1719346154053,-5338.08549613,0.00050136,120]
[330396194,1719346154083,-1375.51,0.00050273,120]
[330396195,1719346154111,-2000.0,0.00050324,120]
[330396196,1719346154140,-900000.0,0.000504,100]
[330396197,1719346154169,-1132.0,0.00050404,28]
[330396198,1719346154198,-1375.51,0.0005041,120]
[330396199,1719346154226,-225.442896,0.0005044,30]
[330396200,1719346154257,-150.286247,0.0005044,30]
[330396201,1719346154285,-6435.0,0.00050453,117]
[330396202,1719346154313,-2657.7,0.00050498,66]
[330396203,1719346154341,-1000000.0,0.000505,95]
[330396204,1719346154370,-1375.51,0.00050547,120]
[330396205,1719346154397,-1375.51,0.00050684,120]
[330396206,1719346154428,-1000.0,0.00050684,70]
[330396207,1719346154456,-172.18888889,0.00050685,120]
[330396208,1719346154485,-326.63,0.00050685,120]
[330396209,1719346154514,-1039.0,0.00050715,30]
[330396210,1719346154543,-1039.0,0.00050715,30]
[330396211,1719346154576,-1375.51,0.00050821,120]
[330396212,1719346154606,-1928.617068,0.000509,30]
[330396213,1719346154634,-1375.51,0.00050958,120]
[330396214,1719346154663,-1000.0,0.00050999,120]
[330396215,1719346154693,-150.0,0.00051,15]
[330396216,1719346154722,-2480.6019518,0.00051,120]
[330396217,1719346154749,-50000.0,0.00051,120]
[330396218,1719346154775,-1436.02734783,0.00051,120]
[330396219,1719346154806,-1000000.0,0.00051,100]
[330396220,1719346154834,-1375.57982633,0.00051095,120]
[330396221,1719346154862,-174474.85528168,0.000511,120]
[330396222,1719346154889,-225.442896,0.00051182,30]
[330396223,1719346154923,-150.286247,0.00051182,30]
[330396224,1719346154952,-900000.0,0.000512,100]
[330396225,1719346154980,-151.0,0.00051233,120]
[330396226,1719346155008,-172.18888889,0.00051397,120]
[330396227,1719346155035,-1132.0,0.00051433,28]
[330396228,1719346155066,-155.0,0.000515,120]
[330396229,1719346155093,-230552.10674981,0.000515,100]
[330396230,1719346167623,-8413.3,0.00048,117]
[330396231,1719346167652,-150.0,0.00051,15]
[330396232,1719346167679,-178.18541926,0.00051499,120]
[330396233,1719346167707,-6610.85635237,0.00051499,120]
[330396234,1719346167734,-769447.89325019,0.000515,100]
[330396235,1719346167762,-150.0,0.000515,30]
[330396236,1719346167790,-151.0,0.00051587,10]
[330396237,1719346167818,-250.0,0.00051616,100]
[330396238,1719346167845,-1514.18897835,0.000518,120]
[330396239,1719346167871,-200087.80829651,0.000518,30]
[330396240,1719346167899,-87500.0,0.0005187,60]
[330396241,1719346167931,-1662.2502685,0.0005188,30]
[330396242,1719346167957,-30000.0,0.000519,30]
[330396243,1719346167984,-225.442896,0.00051924,30]
[330396244,1719346168012,-150.286247,0.00051924,30]
[330396245,1719346168041,-739.0,0.0005195,45]
[330396246,1719346168071,-1000.0,0.00051999,120]
[330396247,1719346168103,-50000.0,0.00052,52]
[330396248,1719346168129,-559.0,0.00052,120]
[330396249,1719346168156,-450.0,0.00052,120]
[330396250,1719346168183,-1000.0,0.00052,120]
[330396251,1719346168210,-625.67,0.00052,30]
[330396252,1719346168237,-50000.0,0.00052,120]
[330396253,1719346168264,-2613.0,0.00052,60]
[330396254,1719346168290,-290.86787478,0.00052,120]
[330396255,1719346168319,-911.0,0.00052,30]
[330396256,1719346168349,-911.0,0.00052,30]
[330396257,1719346168376,-911.0,0.00052,30]
[330396258,1719346168402,-911.0,0.00052,30]
[330396259,1719346168430,-911.0,0.00052,30]
[330396260,1719346168458,-911.0,0.00052,30]
[330396261,1719346168487,-911.0,0.00052,30]
[330396262,1719346168517,-911.0,0.00052,30]
[330396263,1719346168546,-911.0,0.00052,30]
[330396264,1719346168577,-911.0,0.00052,30]
[330396265,1719346168605,-185.73841345,0.00052,120]
[330396266,1719346168632,-1000000.0,0.00052,120]
[330396267,1719346168670,-5500.0,0.00052,120]
[330396268,1719346168699,-153.931342,0.00052,72]
[330396269,1719346168728,-1000.0,0.00052054,100]
[330396270,1719346168756,-323.47799314,0.00052054,30]
[330396271,1719346168786,-2769958.10266845,0.00052055,120]
[330396272,1719346173957,-487.15123217,0.000468,30]
[330396273,1719346173989,-216.74017537,0.00052054,100]
[330396274,1719346174018,-2230041.89733155,0.00052055,120]
[330396275,1719346174046,-200.0,0.00052055,60]
[330396276,1719346174075,-363.04,0.00052055,60]
[330396277,1719346174223,327.64634469,0.00028999,120]
[330396278,1719346183943,2768363.52491622,0.00052055,120]
[330396284,1719346232333,-727.17,0.00015319,2]
[330396285,1719346232343,-2826.1251667,0.00015877,2]
[330396286,1719346232355,-674.44896287,0.00015877,2]
[330396287,1719346232366,-383.59999996,0.00015877,2]
[330396288,1719346232399,-670.92,0.00015877,2]
[330396289,1719346232412,-5151.0,0.00015877,2]
[330396290,1719346232424,-1530.68987047,0.00015877,2]
[330396291,1719346232433,-517.56,0.00017056,2]
[330396292,1719346232444,-2318.96,0.00017063,2]
[330396293,1719346232454,-250.0,0.00017116,2]
[330396294,1719346232463,-2445.45,0.00017117,2]
[330396295,1719346232473,-155.0,0.0001712,2]
[330396296,1719346232485,-23890.0,0.00017121,2]
[330396297,1719346232495,-1000.0,0.00017133,2]
[330396298,1719346232504,-500.0,0.00017212,2]
[330396299,1719346232514,-177.2,0.00017223,2]
[330396300,1719346232523,-155.0,0.00017226,2]
[330396301,1719346232532,-250.0,0.00017227,2]
[330396302,1719346232542,-235.21210657,0.00017259,2]
[330396303,1719346232552,-202.05047868,0.00017259,2]
[330396304,1719346232562,-166.35,0.00017405,2]
[330396305,1719346232572,-499.99,0.00017581,2]
[330396306,1719346232582,-363.58934432,0.00017582,2]
[330396307,1719346232591,-155.0,0.00017582,2]
[330396308,1719346232601,-168.47,0.00017582,2]
[330396309,1719346232611,-727.17,0.00017583,2]
[330396310,1719346232622,-1628.33075206,0.00017732,2]
[330396311,1719346232632,-660.25476663,0.00017762,2]
[330396312,1719346232642,-13029.32376072,0.0001799,2]
[330396313,1719346232651,-11951.59074976,0.00018,2]
[330396314,1719346232661,-14821.164,0.00018241,2]
[330396315,1719346232672,-300.0,0.000185,6]
[330396317,1719346232682,-600.0,0.000186,6]
[330396319,1719346232691,-617.830148,0.00018624,3]
[330396321,1719346232700,-347.47664097,0.00018699,2]
[330396323,1719346232710,-1000.0,0.000187,6]
[330396324,1719346232720,-709.35840252,0.00018739,2]
[330396325,1719346232730,-500.0,0.0001874,2]
[330396326,1719346232740,-264.3264858,0.00018795,2]
[330396327,1719346232750,-1300.0,0.000188,6]
[330396328,1719346232760,-1000.0,0.0001884,2]
[330396329,1719346232769,-2019.34908046,0.0001884,2]
[330396330,1719346232780,-1022.21949,0.0001885,2]
[330396331,1719346232789,-1600.0,0.000189,6]
[330396332,1719346232798,-173.57,0.00018932,2]
[330396333,1719346232808,-4321.8883,0.0001894,2]
[330396334,1719346232818,-169.84796899,0.0001894,2]
[330396335,1719346232827,-9036.2442,0.0001894,2]
[330396336,1719346232837,-245000.0,0.0001894,2]
[330396337,1719346232846,-281.1116,0.0001894,2]
[330396338,1719346232856,-391.7049,0.0001894,2]
[330396339,1719346232866,-39380.1465,0.0001894,2]
[330396340,1719346232879,-187.68301248,0.00018977,2]
[330396341,1719346232891,-5000.0,0.00018978,2]
[330396342,1719346232901,-565194.10529977,0.0001904,2]
[330396343,1719346232913,-7987.01424638,0.0001904,2]
[330396344,1719346232951,-1607.32856253,0.0001904,2]
[330396345,1719346232963,-2360.47515999,0.0001904,2]
[330396346,1719346232976,-360735.79522543,0.0001904,2]
[330396347,1719346232987,-465.83281295,0.0001904,2]
[330396350,1719346238373,-183.41796286,0.00017762,2]
[330396351,1719346238385,-93.58203714,0.0001904,2]
[330396352,1719346238519,-25237.46888027,0.0001904,2]
[330396353,1719346238568,-866.13556849,0.0001904,2]
[330396356,1719346238581,-410.0,0.0001904,2]
[330396511,1719346240288,-264.3264858,0.00018739,2]
[330396513,1719346240298,-17345.56196972,0.0001904,2]
[330396534,1719346240485,-98341.83961869,0.0001904,2]
[330396537,1719346240505,-1276.56382338,0.0001904,2]
[330396539,1719346240517,-844.96821136,0.0001904,2]
[330396542,1719346240533,-1057.25402731,0.0001904,2]
[330396555,1719346240658,-334944.05981282,0.0001904,2]
[330396558,1719346240670,-1047.1115,0.0001904,2]
[330396561,1719346240691,-288.40183904,0.0001904,2]
[330396782,1719346243390,-1276.42705946,0.0001904,2]
[330396783,1719346243413,-3096.70689465,0.0001904,2]
[330396784,1719346243466,-424277.43485582,0.0001904,2]
[330396785,1719346243476,-6894.66638183,0.00019078,2]
[330396786,1719346243487,-712.7612,0.00019078,2]
[330396787,1719346243498,-343.3,0.000191,2]
[330396788,1719346243508,-482.87871356,0.00019169,2]
[330396789,1719346243519,-150.0,0.00019177,2]
[330396790,1719346243530,-1126589.84111655,0.00019178,7]
[330396791,1719346243540,-196.29328096,0.00019178,2]
[330396792,1719346243550,-500.0,0.00019178,2]
[330396793,1719346243561,-151.0,0.00019178,2]
[330396794,1719346243571,-500.0,0.00019178,2]
[330396795,1719346243581,-151.457431,0.00019178,2]
[330396796,1719346243592,-151.0,0.00019178,2]